fUST/lending_fUST_20251213
["ID","MTS","AMOUNT","RATE_DAILY","PERIOD"]
[398401537,1765614453266,-150.0,0.00018999,2]
[398401538,1765614453286,-283.27918356,0.00018999,2]
[398401601,1765614632252,-189.0,0.00018998,2]
[398401603,1765614632261,-1200.0,0.00018999,2]
[398401605,1765614632271,-194.0,0.00018999,2]
[398401607,1765614632280,-300.0,0.00018999,2]
[398401609,1765614632290,-300.0,0.00018999,2]
[398401611,1765614632299,-703.0,0.00018999,2]
[398401613,1765614632308,-696.20930807,0.00019,2]
[398401615,1765614632317,-17.45908273,0.00019,2]
[398401634,1765614632490,-3424.51595971,0.00019,2]
[398401636,1765614632499,-159.22180346,0.00019,2]
[398401638,1765614632509,-160.0,0.00020521,3]
[398401640,1765614632518,-779.0,0.00020709,2]
[398401642,1765614632527,-343.0,0.00020709,2]
[398401644,1765614632537,-159.22180346,0.00020722,20]
[398401646,1765614632546,-285.22489794,0.00022321,2]
[398401648,1765614632555,-159.22180346,0.00022445,38]
[398401650,1765614632564,-200.0,0.0002305,2]
[398401652,1765614632573,-1000.0,0.00023874,30]
[398401654,1765614632583,-1513.79859168,0.00024142,2]
[398401656,1765614632592,-159.22180346,0.00024167,56]
[398401657,1765614632601,-500.0,0.00025,5]
[398401659,1765614632610,-159.22180346,0.00025889,74]
[398401661,1765614632619,-153.0,0.00027123,2]
[398401663,1765614632628,-153.0,0.00027178,2]
[398401665,1765614632640,-153.0,0.00027178,2]
[398401667,1765614632650,-153.0,0.00027178,2]
[398401669,1765614632659,-399.0,0.00027391,2]
[398401671,1765614632668,-477.08229482,0.00027391,2]
[398401706,1765614638347,-2296.48561037,0.00027391,2]
[398401709,1765614638357,-159.22180346,0.00027612,92]
[398401710,1765614638367,-384.9283896,0.00027616,30]
[398401712,1765614638376,-1102.04249239,0.00027894,2]
[398401714,1765614638385,-1025.00181127,0.00027987,3]
[398401900,1765614640536,-500.0,0.00027987,3]
[398402103,1765614648964,822.83927327,0.00012563,2]
[398402104,1765614649089,269.44309349,9.277e-05,2]
[398402105,1765614649306,822.83927327,0.00017471,2]
[398402106,1765614663050,246.98,9.52e-05,2]
[398402107,1765614663570,154.92,0.0001,2]
[398402108,1765614663611,493.96,9.973e-05,2]
[398402109,1765614663694,154.92,0.000106,2]
[398402110,1765614663894,740.93,0.00010426,2]
[398402111,1765614664073,154.92,0.000111,2]
[398402112,1765614664289,987.91,0.00010879,2]
[398402113,1765614664385,154.92,0.000117,2]
[398402114,1765614664685,154.92,0.000123,2]
[398402115,1765614664725,1234.89,0.00011333,2]
[398402116,1765614664989,154.92,0.000129,2]
[398402117,1765614665172,1481.87,0.00011786,2]
[398402118,1765614665275,154.92,0.000134,2]
[398402119,1765614665568,1728.84,0.00012239,2]
[398402120,1765614665622,154.92,0.00014,2]
[398402121,1765614665971,1975.82,0.00012693,2]
[398402122,1765614666397,2222.8,0.00013146,2]
[398402123,1765614666812,2469.78,0.00013599,2]
[398402124,1765614689257,494.09844784,0.00011469,2]
[398402125,1765614689878,494.09844784,0.00016651,2]
[398402126,1765614739609,150.0,6.735e-05,2]
[398402127,1765614740021,150.0,7.055e-05,2]
[398402128,1765614740417,222.28,7.376e-05,2]
[398402129,1765614740820,296.37,7.697e-05,2]
[398402130,1765614741283,370.47,8.018e-05,2]
[398402131,1765614741669,444.56,8.338e-05,2]
[398402132,1765614742286,518.65,8.659e-05,2]
[398402133,1765614742717,592.75,8.98e-05,2]
[398402134,1765614743111,666.84,9.3e-05,2]
[398402135,1765614743521,740.93,9.621e-05,2]
[398402136,1765614751793,702.94677073,0.00017046,2]
[398402137,1765614802434,179.74844157,9.277e-05,2]
[398402138,1765614815116,150.0,6.748e-05,2]
[398402139,1765614815521,150.0,7.069e-05,2]
[398402140,1765614815915,150.0,7.391e-05,2]
[398402141,1765614816362,150.0,7.712e-05,2]
[398402142,1765614816801,150.0,8.033e-05,2]
[398402143,1765614817274,150.0,8.355e-05,2]
[398402144,1765614817619,9.207635,8.676e-05,2]
[398402145,1765614817661,140.792365,8.676e-05,2]
[398402146,1765614818052,169.91,8.997e-05,2]
[398402147,1765614818552,191.15,9.319e-05,2]
[398402148,1765614819194,212.39,9.64e-05,2]
[398402150,1765615589613,296.69618853,0.00011469,2]
[398402151,1765615727379,347.894327,0.00013699,2]
[398402175,1765615832444,-5000.0,0.00015663,2]
[398402177,1765615832455,-1200.0,0.0001582,2]
[398402179,1765615832465,-649.0,0.00015821,2]
[398402181,1765615832475,-150.0,0.00015901,2]
[398402183,1765615832484,-296.69618853,0.00015981,2]
[398402185,1765615832493,-947.0,0.00017387,2]
[398402187,1765615832502,-177.0,0.00017901,2]
[398402189,1765615832512,-204.0,0.00019901,2]
[398402191,1765615832521,-179.74844157,0.00020171,2]
[398402193,1765615832530,-347.894327,0.00020187,2]
[398402195,1765615832539,-296.69618853,0.00020494,2]
[398402197,1765615832548,-231.0,0.00021901,2]
[398402199,1765615832558,-370.9649079,0.00022435,2]
[398402201,1765615832567,-790.37331938,0.00022667,2]
[398402203,1765615832579,-886.90045042,0.00022667,2]
[398402205,1765615832588,-215.0,0.00023625,2]
[398402207,1765615832597,-300.0,0.00023626,2]
[398402209,1765615832606,-273.0,0.00023626,2]
[398402211,1765615832616,-271.30473109,0.00023626,2]
[398402330,1765615838590,-1865.47717774,0.00015506,2]
[398402332,1765615838602,-762.98972031,0.00015506,2]
[398402334,1765615838613,-700.31182566,0.00015506,2]
[398402336,1765615838624,-1671.22127629,0.00015506,2]
[398402338,1765615838634,-28.69526891,0.00023626,2]
[398402340,1765615838644,-258.0,0.00023901,2]
[398402342,1765615838654,-500.0,0.00025,5]
[398402362,1765615838831,-341.11489671,0.00025,5]
[398402364,1765615838840,-1364.45958684,0.00025,5]
[398402366,1765615838850,-480.0,0.00025005,2]
[398402368,1765615838859,-155.0,0.00025005,2]
[398402370,1765615838869,-296.69618853,0.00025006,2]
[398402372,1765615838879,-150.0,0.00025286,2]
[398402374,1765615838889,-150.0,0.00025286,2]
[398402376,1765615838898,-198.36249016,0.00025286,2]
[398402378,1765615838908,-420.0,0.00025631,2]
[398402380,1765615838917,-24.67396276,0.00025669,2]
[398402450,1765615840682,-207.9654824,0.00025669,2]
[398402451,1765615840692,-165.0,0.00025901,2]
[398402452,1765615840701,-347.894327,0.00026676,2]
[398402453,1765615840710,-302.2067323,0.00027123,2]
[398402454,1765615840719,-165.455192,0.00027123,2]
[398402455,1765615840728,-597.4551763,0.00027123,2]
[398402456,1765615840736,-302.2067323,0.00027123,2]
[398402457,1765615840745,-165.455192,0.00027123,2]
[398402458,1765615840754,-597.4551763,0.00027123,2]
[398402459,1765615840763,-302.2067323,0.00027123,2]
[398402460,1765615840771,-165.455192,0.00027123,2]
[398402461,1765615840781,-597.4551763,0.00027123,2]
[398402462,1765615840790,-519.82817456,0.00027216,2]
[398402463,1765615840799,-189.02594912,0.00027375,2]
[398402464,1765615840808,-261.16095916,0.00027375,2]
[398402465,1765615840817,-151.0,0.00027375,2]
[398402466,1765615840826,-257.17388692,0.00027375,2]
[398402467,1765615840835,-500.0,0.00027375,2]
[398402468,1765615840844,-513.49210731,0.00027375,2]
[398402469,1765615840853,-574.12855637,0.00027375,2]
[398402470,1765615840861,-250.0,0.00027375,2]
[398402471,1765615840870,-250.0,0.00027375,2]
[398402472,1765615840879,-209.12255818,0.00027375,2]
[398402473,1765615840887,-414.8,0.00027375,2]
[398402474,1765615840896,-250.0,0.00027375,2]
[398402475,1765615840905,-250.0,0.00027375,2]
[398402476,1765615840914,-251.92855197,0.00027375,2]
[398402477,1765615840923,-250.0,0.00027375,2]
[398402478,1765615840931,-250.88504518,0.00027375,2]
[398402479,1765615840940,-1435.42,0.00027387,10]
[398402480,1765615840949,-1196.18,0.00027387,10]
[398402481,1765615840958,-188.9060905,0.00027391,2]
[398402482,1765615840967,-755.62436201,0.00027391,2]
[398402483,1765615840975,-1700.15481452,0.00027391,2]
[398402484,1765615840985,-3022.49744804,0.00027391,2]
[398402485,1765615840993,-4722.65226256,0.00027391,2]
[398402486,1765615841002,-320.86265176,0.00027391,2]
[398402487,1765615841010,-577.55277317,0.00027391,2]
[398402488,1765615841019,-1026.76048563,0.00027391,2]
[398402489,1765615841028,-500.0,0.00027397,3]
[398402490,1765615841037,-500.0,0.00027397,3]
[398402491,1765615841046,-500.0,0.00027397,3]
[398402492,1765615841054,-500.0,0.00027397,3]
[398402493,1765615841063,-500.0,0.00027397,3]
[398402494,1765615841072,-832.8,0.00027397,3]
[398402495,1765615841081,-1134.8,0.00027397,3]
[398402496,1765615841089,-512.4,0.00027397,3]
[398402497,1765615841098,-500.0,0.00027397,3]
[398402498,1765615841107,-507.36,0.00027397,3]
[398402499,1765615841116,-500.0,0.00027397,3]
[398402500,1765615841125,-500.0,0.00027397,3]
[398402501,1765615841134,-1314.94,0.00027397,3]
[398402502,1765615841144,-520.98,0.00027397,3]
[398402503,1765615841153,-500.0,0.00027397,3]
[398402504,1765615841162,-500.0,0.00027397,3]
[398402505,1765615841170,-500.0,0.00027397,3]
[398402506,1765615841179,-500.0,0.00027397,3]
[398402507,1765615841188,-500.0,0.00027397,3]
[398402508,1765615841197,-500.0,0.00027397,3]
[398402509,1765615841206,-500.0,0.00027397,3]
[398402510,1765615841215,-500.0,0.00027397,3]
[398402511,1765615841224,-500.0,0.00027397,3]
[398402512,1765615841233,-500.0,0.00027397,3]
[398402513,1765615841241,-500.0,0.00027397,3]
[398402514,1765615841250,-918.53,0.00027397,3]
[398402515,1765615841259,-1699.93,0.00027397,3]
[398402516,1765615841268,-500.0,0.00027397,3]
[398402517,1765615841277,-500.0,0.00027397,3]
[398402518,1765615841286,-500.0,0.00027397,3]
[398402519,1765615841295,-500.0,0.00027397,3]
[398402520,1765615841303,-500.0,0.00027397,3]
[398402521,1765615841313,-1181.23,0.00027397,3]
[398402522,1765615841322,-500.0,0.00027397,3]
[398402523,1765615841331,-500.0,0.00027397,3]
[398402524,1765615841340,-2612.86,0.00027397,3]
[398402525,1765615841349,-500.0,0.00027397,3]
[398402526,1765615841357,-717.81,0.00027397,3]
[398402527,1765615841366,-500.0,0.00027397,3]
[398402528,1765615841375,-500.0,0.00027397,2]
[398402529,1765615841384,-1154.76,0.00027397,3]
[398402530,1765615841395,-609.42084599,0.00027397,3]
[398402531,1765615841404,-500.0,0.00027397,3]
[398402532,1765615841413,-500.0,0.00027397,3]
[398402533,1765615841422,-500.0,0.00027397,3]
[398402534,1765615841430,-1021.04,0.00027397,3]
[398402535,1765615841440,-500.0,0.00027397,3]
[398402536,1765615841450,-500.0,0.00027397,3]
[398402537,1765615841459,-1197.94,0.00027397,3]
[398402538,1765615841468,-971.99,0.00027397,3]
[398402539,1765615841477,-500.0,0.00027397,3]
[398402540,1765615841486,-500.0,0.00027397,3]
[398402541,1765615841495,-1803.59,0.00027397,3]
[398402542,1765615841505,-953.49,0.00027397,3]
[398402543,1765615841514,-500.0,0.00027397,3]
[398402544,1765615841523,-500.0,0.00027397,3]
[398402546,1765615841532,-500.0,0.00027397,3]
[398402547,1765615841542,-500.0,0.00027397,3]
[398402549,1765615841552,-1909.21,0.00027397,3]
[398402551,1765615841562,-500.0,0.00027397,3]
[398402552,1765615841570,-681.2,0.00027397,3]
[398402554,1765615841580,-500.0,0.00027397,3]
[398402555,1765615841589,-500.0,0.00027397,3]
[398402556,1765615841598,-2245.8,0.00027397,3]
[398402557,1765615841607,-556.13,0.00027397,3]
[398402558,1765615841617,-500.0,0.00027397,3]
[398402559,1765615841627,-1263.39,0.00027397,3]
[398402560,1765615841635,-500.0,0.00027397,3]
[398402561,1765615841645,-500.0,0.00027397,3]
[398402562,1765615841655,-500.0,0.00027397,3]
[398402563,1765615841665,-500.0,0.00027397,3]
[398402564,1765615841676,-1430.97,0.00027397,3]
[398402565,1765615841685,-500.0,0.00027397,3]
[398402566,1765615841695,-500.0,0.00027397,3]
[398402567,1765615841705,-500.0,0.00027397,3]
[398402568,1765615841714,-2307.68,0.00027397,3]
[398402569,1765615841724,-500.0,0.00027397,3]
[398402570,1765615841735,-500.0,0.00027397,3]
[398402571,1765615841746,-587.19,0.00027397,3]
[398402572,1765615841756,-500.0,0.00027397,3]
[398402573,1765615841765,-741.36,0.00027397,3]
[398402574,1765615841775,-782.88,0.00027397,3]
[398402575,1765615841784,-500.0,0.00027397,3]
[398402576,1765615841794,-556.53,0.00027397,3]
[398402577,1765615841804,-500.0,0.00027397,3]
[398402578,1765615841813,-500.0,0.00027397,3]
[398402579,1765615841822,-500.0,0.00027397,3]
[398402580,1765615841832,-514.62,0.00027397,3]
[398402581,1765615841842,-500.0,0.00027397,3]
[398402582,1765615841851,-2090.31,0.00027397,3]
[398402583,1765615841860,-500.0,0.00027397,3]
[398402584,1765615841869,-500.0,0.00027397,3]
[398402585,1765615841879,-500.0,0.00027397,3]
[398402586,1765615841888,-500.0,0.00027397,3]
[398402587,1765615841897,-500.0,0.00027397,3]
[398402588,1765615841907,-500.0,0.00027397,3]
[398402589,1765615841915,-349.49136585,0.00027397,3]
[398402590,1765615841928,-255.82232218,0.00027397,3]
[398402621,1765615843511,-279.65631197,0.00027397,3]
[398402622,1765615843520,-500.0,0.00027397,3]
[398402623,1765615843530,-220.34368803,0.00027397,3]
[398402627,1765615846532,-342.55454446,0.00027387,10]
[398402628,1765615846543,-284.28893367,0.00027387,10]
[398402629,1765615846555,-369.97652187,0.00027387,10]
[398402630,1765615846564,-2387.45631197,0.00027397,3]
[398402631,1765615846574,-500.0,0.00027397,3]
[398402632,1765615846583,-584.41716616,0.00027397,3]
[398402640,1765616787998,241.30187376,0.00011469,2]
[398402641,1765616796736,3170.3,0.00014,2]
[398402642,1765616798163,-300.0,0.00020384,2]
[398402643,1765616798185,-13.72046547,0.00020385,2]
[398402644,1765616825091,-300.0,0.00020384,2]
[398402645,1765616825111,-855.61355231,0.00020385,2]
[398402646,1765616847080,-265.54321729,0.00020385,2]
[398402699,1765617031524,-708.02923581,0.00020285,2]
[398402705,1765617031578,-256.25794504,0.00020285,2]
[398402707,1765617031587,-727.0,0.00020285,2]
[398402709,1765617031597,-300.0,0.00020384,2]
[398402711,1765617031606,-150.0,0.00020385,2]
[398402713,1765617031615,-3214.99205496,0.00020385,2]
[398402862,1765617037694,-7577.26733172,0.00020385,2]
[398402864,1765617037706,-43591.30051969,0.00020385,2]
[398402866,1765617037717,-8581.03043972,0.00020385,2]
[398402868,1765617037748,-521.37153654,0.00020385,2]
[398402870,1765617037759,-559.92811737,0.00020385,2]
[398402871,1765617037768,-180.2876869,0.00020386,2]
[398402872,1765617037777,-329.1747573,0.00020386,2]
[398402874,1765617037793,-170.8252427,0.00020386,2]
[398402875,1765617037802,-388.76838566,0.00020386,2]
[398402989,1765617039897,-111.23161434,0.00020386,2]
[398402990,1765617039906,-500.0,0.00020386,2]
[398402991,1765617039918,-454.7357909,0.00020386,2]
[398402992,1765617039927,-964.28718084,0.00021913,2]
[398402993,1765617039936,-420.0,0.00022187,2]
[398402994,1765617039945,-299.35569176,0.00022385,2]
[398402995,1765617039953,-964.28718084,0.00023541,2]
[398402996,1765617039962,-467.0,0.0002415,2]
[398402997,1765617039970,-1000.0,0.00024929,30]
[398402998,1765617039980,-3066.96403631,0.00025,5]
[398402999,1765617039989,-797.13241146,0.00025,5]
[398403000,1765617039997,-107.43419003,0.00025169,2]
[398403264,1765617042826,-856.85299081,0.00025169,2]
[398403266,1765617042836,-969.8315277,0.00026253,2]
[398403268,1765617042845,-964.28718084,0.00026796,2]
[398403270,1765617042854,-2297.26132331,0.00027,15]
[398403272,1765617042863,-500.0,0.00027123,3]
[398403274,1765617042872,-500.0,0.0002726,3]
[398403276,1765617042881,-2323.15411829,0.000273,7]
[398403278,1765617042889,-399.0,0.00027381,2]
[398403280,1765617042902,-2773.56790519,0.00027381,2]
[398403282,1765617042912,-2000.0,0.00027386,7]
[398403284,1765617042924,-576.86,0.00027387,10]
[398403286,1765617042933,-525.4,0.0002739,3]
[398403288,1765617042942,-2000.0,0.00027396,2]
[398403290,1765617042952,-2000.0,0.00027396,3]
[398403292,1765617042962,-500.0,0.00027397,3]
[398403294,1765617042972,-804.94,0.00027397,3]
[398403296,1765617042981,-500.0,0.00027397,3]
[398403298,1765617042991,-500.0,0.00027397,3]
[398403300,1765617043000,-1145.8,0.00027397,3]
[398403302,1765617043010,-897.33,0.00027397,3]
[398403304,1765617043020,-163.457904,0.00027397,3]
[398403306,1765617043029,-500.0,0.00027397,3]
[398403308,1765617043042,-169.828461,0.00027397,3]
[398403310,1765617043051,-500.0,0.00027397,3]
[398403313,1765617043062,-161.29001601,0.00027397,3]
[398403315,1765617043072,-500.0,0.00027397,3]
[398403317,1765617043084,-500.0,0.00027397,3]
[398403319,1765617043094,-1068.39,0.00027397,3]
[398403321,1765617043104,-500.0,0.00027397,3]
[398403323,1765617043114,-1993.075405,0.00027397,3]
[398403325,1765617043123,-500.0,0.00027397,3]
[398403327,1765617043134,-507.85407508,0.00027397,3]
[398403329,1765617043143,-500.0,0.00027397,3]
[398403331,1765617043152,-500.0,0.00027397,3]
[398403333,1765617043161,-500.0,0.00027397,3]
[398403335,1765617043171,-645.92,0.00027397,3]
[398403337,1765617043180,-500.0,0.00027397,3]
[398403339,1765617043189,-553.99,0.00027397,3]
[398403341,1765617043199,-500.0,0.00027397,3]
[398403343,1765617043208,-500.0,0.00027397,3]
[398403345,1765617043218,-500.0,0.00027397,3]
[398403347,1765617043227,-500.0,0.00027397,3]
[398403349,1765617043237,-500.0,0.00027397,3]
[398403351,1765617043247,-500.0,0.00027397,3]
[398403353,1765617043256,-500.0,0.00027397,3]
[398403355,1765617043267,-500.0,0.00027397,3]
[398403357,1765617043277,-660.68,0.00027397,3]
[398403359,1765617043286,-856.0,0.00027397,3]
[398403361,1765617043296,-500.0,0.00027397,3]
[398403363,1765617043307,-164.17049814,0.00027397,3]
[398403365,1765617043317,-500.0,0.00027397,3]
[398403367,1765617043327,-574.56761401,0.00027397,3]
[398403369,1765617043336,-500.0,0.00027397,3]
[398403371,1765617043346,-500.0,0.00027397,3]
[398403373,1765617043355,-790.78,0.00027397,3]
[398403375,1765617043364,-500.0,0.00027397,3]
[398403377,1765617043374,-500.0,0.00027397,3]
[398403379,1765617043383,-500.0,0.00027397,3]
[398403381,1765617043395,-500.0,0.00027397,3]
[398403383,1765617043404,-500.0,0.00027397,3]
[398403385,1765617043416,-512.89,0.00027397,3]
[398403387,1765617043425,-500.0,0.00027397,3]
[398403389,1765617043435,-500.0,0.00027397,3]
[398403390,1765617043444,-500.0,0.00027397,3]
[398403391,1765617043454,-523.24740773,0.00027397,3]
[398403392,1765617043463,-500.0,0.00027397,3]
[398403393,1765617043472,-500.0,0.00027397,3]
[398403394,1765617043481,-500.0,0.00027397,3]
[398403395,1765617043491,-500.0,0.00027397,3]
[398403396,1765617043501,-500.0,0.00027397,3]
[398403397,1765617043511,-500.0,0.00027397,3]
[398403398,1765617043520,-553.44212716,0.00027397,3]
[398403399,1765617043530,-500.0,0.00027397,3]
[398403400,1765617043539,-500.0,0.00027397,3]
[398403401,1765617043549,-639.5,0.00027397,3]
[398403402,1765617043559,-500.0,0.00027397,3]
[398403403,1765617043569,-500.0,0.00027397,3]
[398403404,1765617043578,-3077.68,0.00027397,2]
[398403405,1765617043588,-500.0,0.00027397,3]
[398403406,1765617043598,-593.39,0.00027397,3]
[398403407,1765617043608,-500.0,0.00027397,3]
[398403408,1765617043618,-2235.67,0.00027397,3]
[398403409,1765617043627,-552.82302974,0.00027397,3]
[398403410,1765617043637,-500.0,0.00027397,3]
[398403411,1765617043646,-500.0,0.00027397,3]
[398403412,1765617043656,-1390.25,0.00027397,3]
[398403414,1765617043665,-500.0,0.00027397,3]
[398403416,1765617043675,-785.9,0.00027397,3]
[398403418,1765617043686,-500.0,0.00027397,3]
[398403420,1765617043695,-500.0,0.00027397,3]
[398403422,1765617043705,-500.0,0.00027397,3]
[398403424,1765617043715,-831.81,0.00027397,3]
[398403426,1765617043725,-1408.37,0.00027397,3]
[398403428,1765617043735,-500.0,0.00027397,3]
[398403430,1765617043745,-500.0,0.00027397,3]
[398403450,1765617043925,-1689.79,0.00027397,3]
[398403452,1765617043935,-500.0,0.00027397,3]
[398403454,1765617043944,-500.0,0.00027397,3]
[398403456,1765617043953,-500.0,0.00027397,3]
[398403458,1765617043963,-500.0,0.00027397,3]
[398403460,1765617043972,-500.0,0.00027397,3]
[398403462,1765617043985,-500.0,0.00027397,3]
[398403464,1765617043994,-500.0,0.00027397,3]
[398403466,1765617044003,-500.0,0.00027397,3]
[398403468,1765617044012,-2326.68,0.00027397,3]
[398403470,1765617044021,-824.67,0.00027397,3]
[398403472,1765617044030,-418.86088158,0.00027397,3]
[398403474,1765617044039,-1057.47,0.00027397,3]
[398403476,1765617044048,-500.0,0.00027397,3]
[398403478,1765617044058,-500.0,0.00027397,3]
[398403480,1765617044067,-500.0,0.00027397,3]
[398403482,1765617044076,-500.0,0.00027397,3]
[398403484,1765617044085,-500.0,0.00027397,3]
[398403486,1765617044094,-500.0,0.00027397,3]
[398403488,1765617044103,-500.0,0.00027397,3]
[398403490,1765617044112,-500.0,0.00027397,3]
[398403492,1765617044121,-500.0,0.00027397,3]
[398403494,1765617044130,-500.0,0.00027397,3]
[398403496,1765617044139,-500.0,0.00027397,3]
[398403498,1765617044148,-500.0,0.00027397,3]
[398403500,1765617044158,-1473.21,0.00027397,3]
[398403502,1765617044167,-500.0,0.00027397,3]
[398403504,1765617044176,-500.0,0.00027397,3]
[398403506,1765617044185,-500.0,0.00027397,3]
[398403508,1765617044194,-500.0,0.00027397,3]
[398403510,1765617044203,-500.0,0.00027397,3]
[398403512,1765617044212,-500.0,0.00027397,3]
[398403514,1765617044222,-500.0,0.00027397,3]
[398403516,1765617044231,-500.0,0.00027397,3]
[398403518,1765617044240,-500.0,0.00027397,3]
[398403520,1765617044250,-500.0,0.00027397,3]
[398403522,1765617044259,-500.0,0.00027397,3]
[398403524,1765617044268,-500.0,0.00027397,3]
[398403526,1765617044277,-500.0,0.00027397,3]
[398403528,1765617044287,-500.0,0.00027397,3]
[398403530,1765617044296,-460.4,0.00027397,3]
[398403532,1765617044305,-500.77148604,0.00027397,3]
[398403534,1765617044314,-500.0,0.00027397,3]
[398403536,1765617044323,-500.0,0.00027397,3]
[398403537,1765617044332,-500.0,0.00027397,3]
[398403539,1765617044342,-846.23,0.00027397,3]
[398403542,1765617044351,-500.0,0.00027397,3]
[398403543,1765617044360,-500.0,0.00027397,3]
[398403545,1765617044369,-242.20378696,0.00027397,3]
[398403548,1765617044379,-500.0,0.00027397,3]
[398403550,1765617044388,-500.0,0.00027397,3]
[398403551,1765617044397,-500.0,0.00027397,3]
[398403554,1765617044406,-583.61,0.00027397,3]
[398403555,1765617044415,-626.59,0.00027397,3]
[398403557,1765617044425,-500.0,0.00027397,3]
[398403559,1765617044434,-904.94,0.00027397,3]
[398403561,1765617044443,-500.0,0.00027397,3]
[398403563,1765617044454,-500.0,0.00027397,3]
[398403565,1765617044463,-500.0,0.00027397,3]
[398403567,1765617044473,-500.0,0.00027397,3]
[398403569,1765617044483,-180.59644306,0.00027397,3]
[398403571,1765617044493,-500.57935158,0.00027397,3]
[398403573,1765617044502,-500.0,0.00027397,3]
[398403575,1765617044512,-500.0,0.00027397,3]
[398403577,1765617044521,-399.8092932,0.00027397,3]
[398403579,1765617044530,-500.0,0.00027397,3]
[398403581,1765617044539,-798.1,0.00027397,3]
[398403583,1765617044548,-321.40351274,0.00027397,3]
[398403585,1765617044557,-511.29337783,0.00027397,3]
[398403587,1765617044567,-500.0,0.00027397,3]
[398403589,1765617044576,-500.0,0.00027397,3]
[398403591,1765617044585,-1478.52,0.00027397,3]
[398403593,1765617044595,-1087.52,0.00027397,3]
[398403595,1765617044604,-500.0,0.00027397,3]
[398403597,1765617044613,-500.0,0.00027397,3]
[398403599,1765617044623,-500.0,0.00027397,3]
[398403601,1765617044632,-500.0,0.00027397,3]
[398403603,1765617044641,-500.0,0.00027397,3]
[398403605,1765617044650,-500.0,0.00027397,3]
[398403607,1765617044659,-500.0,0.00027397,3]
[398403609,1765617044668,-2523.4,0.00027397,3]
[398403611,1765617044678,-298.49590964,0.00027397,3]
[398403613,1765617044688,-726.62,0.00027397,3]
[398403615,1765617044698,-500.0,0.00027397,3]
[398403617,1765617044707,-789.39,0.00027397,3]
[398403618,1765617044716,-502.59913545,0.00027397,3]
[398403621,1765617044726,-500.0,0.00027397,3]
[398403623,1765617044736,-500.0,0.00027397,3]
[398403625,1765617044745,-577.02,0.00027397,3]
[398403627,1765617044755,-500.0,0.00027397,3]
[398403629,1765617044765,-857.63,0.00027397,3]
[398403631,1765617044774,-500.0,0.00027397,3]
[398403632,1765617044783,-364.77134358,0.00027397,3]
[398403634,1765617044793,-500.0,0.00027397,3]
[398403636,1765617044803,-1260.15,0.00027397,3]
[398403638,1765617044813,-707.76,0.00027397,3]
[398403641,1765617044823,-500.0,0.00027397,3]
[398403642,1765617044832,-500.0,0.00027397,3]
[398403645,1765617044842,-500.0,0.00027397,3]
[398403646,1765617044852,-500.0,0.00027397,3]
[398403648,1765617044861,-500.0,0.00027397,3]
[398403650,1765617044871,-500.0,0.00027397,3]
[398403653,1765617044880,-323.13322065,0.00027397,3]
[398403655,1765617044890,-500.0,0.00027397,3]
[398403656,1765617044897,-500.0,0.00027397,3]